bitfinex-derivatives/quotes_SOLF0:USTF0_20250522
["timestamp","ask_amount","ask_price","bid_price","bid_amount"]
[1747882376220,134.5044,174.64,174.6,5.7256]
[1747882376521,134.54607747,174.64,174.6,5.7666191]
[1747882377518,5.725,174.63,174.6,0.0410191]
[1747882377821,128.82167747,174.64,174.6,0.0410191]
[1747882378516,130.75487747,174.64,174.6,0.0410191]
[1747882379523,136.47927747,174.64,174.6,0.0410191]
[1747882380520,130.75487747,174.64,174.6,0.0410191]
[1747882382527,5.725,174.63,174.6,0.0410191]
[1747882383027,5.7252,174.62,174.6,0.0410191]
[1747882383327,130.75487747,174.64,174.6,0.0410191]
[1747882383728,5.7249,174.63,174.6,0.0410191]
[1747882383924,130.75487747,174.64,174.6,0.0410191]
[1747882384623,136.47947747,174.64,174.6,5.7667191]
[1747882384822,130.75487747,174.64,174.6,5.7667191]
[1747882385431,130.75487747,174.64,174.6,0.0410191]
[1747882385820,5.7248,174.63,174.6,0.0410191]
[1747882387232,5.7251,174.62,174.6,0.0410191]
[1747882387423,130.75487747,174.64,174.6,0.0410191]
[1747882388227,5.7248,174.63,174.6,0.0410191]
[1747882388825,5.7251,174.62,174.6,0.0410191]
[1747882389029,130.75487747,174.64,174.6,0.0410191]
[1747882389434,5.7254,174.61,174.6,0.0410191]
[1747882389933,130.75487747,174.64,174.56,128.78]
[1747882390235,5.7266,174.58,174.53,114.6077]
[1747882390433,5.7266,174.58,174.53,108.88]
[1747882390627,130.7132,174.64,174.53,108.88]
[1747882391128,0.04174164,174.6,174.57,0.03985599]
[1747882394130,5.7263,174.58,174.57,0.03985599]
[1747882397532,1.985,174.59,174.57,0.03985599]
[1747882397939,0.04174164,174.6,174.57,0.03985599]
[1747882399443,5.7263,174.58,174.57,0.03985599]
[1747882400641,0.04174164,174.6,174.57,0.03985599]
[1747882401137,0.04174164,174.6,174.57,5.76625599]
[1747882401338,0.04174164,174.6,174.57,0.03985599]
[1747882401937,0.04174164,174.6,174.58,5.7261]
[1747882402342,0.04174164,174.6,174.59,1.43201353]
[1747882403546,0.04174164,174.6,174.59,5.726]
[1747882404550,128.58,174.68,174.59,8.07835657]
[1747882404845,5.7235,174.67,174.59,6.64655564]
[1747882405045,128.58,174.68,174.62,5.7248]
[1747882405450,0.043421,174.67,174.63,0.04364433]
[1747882407350,5.7244,174.64,174.63,0.04364433]
[1747882407650,0.043421,174.67,174.63,1.47514556]
[1747882407854,0.043421,174.67,174.63,0.04364433]
[1747882408045,128.623421,174.67,174.63,0.04364433]
[1747882408245,4.0251,174.66,174.63,0.04364433]
[1747882408441,5.7244,174.64,174.63,0.04364433]
[1747882408759,10.67165564,174.66,174.49,6.64655564]
[1747882409046,10.67165564,174.66,174.3,150.38420834]
[1747882409047,6.64953674,174.61,174.3,150.38420834]
[1747882409243,128.34,174.64,174.49,6.64953674]
[1747882409447,128.34,174.64,174.52,5.7281]
[1747882409644,0.03768601,174.58,174.55,0.04270708]
[1747882410645,0.03768601,174.58,174.55,128.38270708]
[1747882414352,0.03768601,174.58,174.55,135.03224382]
[1747882414750,0.03768601,174.58,174.56,5.727]
[1747882415051,0.03768601,174.58,174.55,135.03224382]
[1747882415246,0.03768601,174.58,174.57,5.7267]
[1747882415853,0.03768601,174.58,174.55,140.75924382]
[1747882416053,0.03768601,174.58,174.55,135.03224382]
[1747882416459,0.03768601,174.58,174.56,5.7267]
[1747882416754,4.0251,174.66,174.55,135.03224382]
[1747882416953,2.0623,174.68,174.58,6.64953674]
[1747882417154,5.7241,174.65,174.59,5.7258]
[1747882417453,5.7241,174.65,174.6,128.36]
[1747882417754,0.03836781,174.64,174.61,0.04107787]
[1747882418272,5.76276781,174.64,174.61,0.04107787]
[1747882419455,0.03836781,174.64,174.61,0.04107787]
[1747882419846,5.725,174.62,174.61,0.04107787]
[1747882420957,0.03836781,174.64,174.61,0.04107787]
[1747882422054,0.03836781,174.64,174.62,1.43171113]
[1747882422254,0.03836781,174.64,174.61,0.04107787]
[1747882422450,0.03836781,174.64,174.62,1.43170114]
[1747882422655,0.03836781,174.64,174.61,0.04107787]
[1747882422853,0.03836781,174.64,174.62,1.43168845]
[1747882423050,0.03836781,174.64,174.61,0.04107787]
[1747882423249,0.03836781,174.64,174.62,129.77163738]
[1747882423456,0.03836781,174.64,174.63,1.43160779]
[1747882424755,0.03836781,174.64,174.63,7.15630779]
[1747882425063,0.03836781,174.64,174.63,1.43160779]
[1747882425757,0.03836781,174.64,174.62,128.34]
[1747882426056,0.03836781,174.64,174.63,1.43148859]
[1747882428249,0.03836781,174.64,174.61,128.36107787]
[1747882429356,5.76276781,174.64,174.61,128.36107787]
[1747882430357,5.76276781,174.64,174.61,0.04107787]
[1747882430564,5.7247,174.63,174.61,0.04107787]
[1747882430766,0.03836781,174.64,174.61,0.04107787]
[1747882431161,5.76286781,174.64,174.61,0.04107787]
[1747882431568,0.03836781,174.64,174.61,0.04107787]
[1747882434271,0.03836781,174.64,174.61,5.76617787]
[1747882434771,0.03836781,174.64,174.61,0.04107787]
[1747882435371,0.03836781,174.64,174.62,5.725]
[1747882436472,0.03836781,174.64,174.61,0.04107787]
[1747882436876,0.03836781,174.64,174.62,1.4317892]
[1747882437173,5.725,174.63,174.62,1.4317892]
[1747882437370,0.03836781,174.64,174.61,0.04107787]
[1747882438176,5.7251,174.62,174.61,0.04107787]
[1747882439677,5.7251,174.62,174.61,1.47316358]
[1747882440581,5.7251,174.62,174.61,0.04107787]
[1747882442968,0.03836781,174.64,174.61,0.04107787]
[1747882443582,5.76296781,174.64,174.61,0.04107787]
[1747882444082,0.03836781,174.64,174.61,0.04107787]
[1747882445377,0.03836781,174.64,174.62,5.7248]
[1747882445587,0.03836781,174.64,174.61,0.04107787]
[1747882445975,5.7251,174.62,174.61,0.04107787]
[1747882446873,5.725,174.63,174.61,0.04107787]
[1747882447984,5.76286781,174.64,174.61,0.04107787]
[1747882448188,0.03836781,174.64,174.61,0.04107787]
[1747882449177,0.03836781,174.64,174.61,5.76627787]
[1747882449373,0.03836781,174.64,174.61,0.04107787]
[1747882450685,0.03836781,174.64,174.62,5.725]
[1747882450987,0.03836781,174.64,174.61,0.04107787]
[1747882451285,0.03836781,174.64,174.63,5.7247]
[1747882453887,0.03836781,174.64,174.61,0.04107787]
[1747882454282,0.03836781,174.64,174.62,1.43164572]
[1747882454588,0.03836781,174.64,174.61,5.76647787]
[1747882455389,0.03836781,174.64,174.62,7.15665903]
[1747882455585,0.03836781,174.64,174.62,5.725]
[1747882456091,0.03836781,174.64,174.61,5.76637787]
[1747882456282,0.03836781,174.64,174.62,1.43166599]
[1747882456585,0.03836781,174.64,174.61,5.76647787]
[1747882456783,0.03836781,174.64,174.61,0.04107787]
[1747882456986,5.7251,174.62,174.61,0.04107787]
[1747882457787,5.7264,174.59,174.55,133.8873]
[1747882458085,5.7264,174.59,174.56,1.43208605]
[1747882458285,5.7258,174.6,174.57,1.43208605]
[1747882458482,4.0616,174.63,174.55,128.16]
[1747882458683,4.0616,174.63,174.56,1.43208678]
[1747882458886,0.04231104,174.61,174.58,0.03773159]
[1747882460490,0.04231104,174.61,174.58,5.76393159]
[1747882460683,0.04231104,174.61,174.59,1.43197305]
[1747882460886,0.04231104,174.61,174.58,0.03773159]
[1747882461084,0.04231104,174.61,174.59,7.15803041]
[1747882461285,0.04231104,174.61,174.58,0.03773159]
[1747882462084,5.726,174.6,174.58,0.03773159]
[1747882462592,0.04231104,174.61,174.58,0.03773159]
[1747882463093,5.7257,174.6,174.58,0.03773159]
[1747882464096,5.7261,174.59,174.58,0.03773159]
[1747882464393,0.04231104,174.61,174.58,0.03773159]
[1747882464591,0.04231104,174.61,174.59,1.43194526]
[1747882464790,0.04231104,174.61,174.6,1.43194526]
[1747882465096,0.04231104,174.61,174.6,7.15764526]
[1747882465297,128.32,174.68,174.6,1.43194526]
[1747882465500,128.16,174.72,174.61,1.43194526]
[1747882465698,5.7229,174.69,174.65,5.7239]
[1747882466202,5.7229,174.69,174.64,5.7243]
[1747882466392,0.03934082,174.69,174.65,0.04163931]
[1747882468498,5.7238,174.66,174.65,0.04163931]
[1747882470098,0.03934082,174.69,174.55,6.64244326]
[1747882470302,6.64244326,174.71,174.55,6.64244326]
[1747882470303,6.64244326,174.71,174.6,1.4317795]
[1747882470498,6.64244326,174.71,174.55,6.64244326]
[1747882470694,6.64244326,174.71,174.6,1.43181752]
[1747882470897,6.64244326,174.71,174.59,5.726]
[1747882471095,0.040369,174.67,174.63,0.04330256]
[1747882471407,5.7244,174.64,174.63,0.04330256]
[1747882471603,127.940369,174.67,174.52,10.59254326]
[1747882471900,6.64244326,174.65,174.55,1.43188028]
[1747882472097,4.0168,174.66,174.52,127.9]
[1747882472098,6.64244326,174.62,174.52,127.9]
[1747882472399,127.9,174.61,174.53,1.43227876]
[1747882472700,5.7271,174.56,174.55,0.03639251]
[1747882477696,5.7271,174.56,174.55,1.4689306]
[1747882479100,5.7271,174.56,174.55,0.03639251]
[1747882481607,5.7271,174.56,174.55,1.4687842]
[1747882482201,5.7271,174.56,174.55,0.03639251]
[1747882482500,0.04380481,174.59,174.55,0.03639251]
[1747882483205,0.04380481,174.59,174.56,1.43202593]
[1747882483405,0.04380481,174.59,174.56,2.0928]
[1747882483606,127.94,174.65,174.57,1.9082]
[1747882484004,1.996,174.68,174.58,127.94]
[1747882484509,5.7241,174.65,174.58,127.94]
[1747882484710,0.03835757,174.63,174.6,0.04195054]
[1747882487605,5.76325757,174.63,174.6,0.04195054]
[1747882489116,5.76325757,174.63,174.61,1.43180985]
[1747882489815,5.7251,174.62,174.61,1.43180985]
[1747882490421,5.7254,174.61,174.6,0.04195054]
[1747882490719,0.03835757,174.63,174.6,0.04195054]
[1747882491318,5.76315757,174.63,174.6,0.04195054]
[1747882491617,0.03835757,174.63,174.6,0.04195054]
[1747882492317,0.03835757,174.63,174.61,5.7254]
[1747882492918,0.03835757,174.63,174.6,0.04195054]
[1747882492919,0.03835757,174.63,174.6,5.76765054]
[1747882493821,0.03835757,174.63,174.61,5.7254]
[1747882496228,0.03835757,174.63,174.62,5.7251]
[1747882497531,0.03835757,174.63,174.61,5.7253]
[1747882498729,0.03835757,174.63,174.62,5.7251]
[1747882499833,0.03835757,174.63,174.61,5.7253]
[1747882500431,0.03835757,174.63,174.6,5.76755054]
[1747882500930,0.03835757,174.63,174.6,0.04195054]
[1747882502037,0.03835757,174.63,174.61,5.7251]
[1747882502629,0.03835757,174.63,174.6,0.04195054]
[1747882503230,5.7254,174.61,174.6,0.04195054]
[1747882505036,5.7254,174.61,174.6,1.37210209]
[1747882505227,0.03835757,174.63,174.6,1.37210209]
[1747882505731,0.03835757,174.63,174.6,0.04195054]
[1747882506530,0.03835757,174.63,174.61,5.7254]
[1747882506735,0.03835757,174.63,174.6,0.04195054]
[1747882506933,0.03835757,174.63,174.62,5.7251]
[1747882507133,0.03835757,174.63,174.6,0.04195054]
[1747882508234,0.03835757,174.63,174.61,1.43185218]
[1747882508833,5.7254,174.61,174.6,0.04195054]
[1747882509537,5.7252,174.62,174.6,0.04195054]
[1747882509837,0.03835757,174.63,174.6,0.04195054]
[1747882510036,5.7254,174.61,174.6,0.04195054]
[1747882510840,5.7254,174.61,174.6,5.054e-05]
[1747882511241,133.3254,174.61,174.6,5.054e-05]
[1747882514344,133.3254,174.61,174.6,1.43232993]
[1747882514638,5.7267,174.57,174.54,5.7276]
[1747882515439,5.76944094,174.57,174.54,5.77053709]
[1747882516440,5.76944094,174.57,174.54,0.04293709]
[1747882517337,0.04274094,174.57,174.54,0.04293709]
[1747882518042,5.727,174.56,174.54,0.04293709]
[1747882518545,5.76954094,174.57,174.54,0.04293709]
[1747882519749,5.7271,174.56,174.54,0.04293709]
[1747882519946,0.04274094,174.57,174.54,0.04293709]
[1747882520838,5.7273,174.56,174.54,0.04293709]
[1747882522044,5.7274,174.55,174.54,0.04293709]
[1747882522239,0.04274094,174.57,174.54,0.04293709]
[1747882522644,5.76964094,174.57,174.54,0.04293709]
[1747882523043,0.04274094,174.57,174.54,1.04223695]
[1747882523343,5.727,174.56,174.54,1.04223695]
[1747882523746,5.727,174.56,174.54,0.04293709]
[1747882525350,0.04274094,174.57,174.54,0.04293709]
[1747882525351,5.76954094,174.57,174.54,0.04293709]
[1747882526053,0.04274094,174.57,174.54,0.04293709]
[1747882527551,5.7274,174.55,174.54,0.04293709]
[1747882527751,0.04274094,174.57,174.46,501.48244326]
[1747882527954,134.24244326,174.61,174.47,129.07243647]
[1747882528248,134.24244326,174.61,174.48,1.43243647]
[1747882528446,134.24244326,174.61,174.49,1.43243647]
[1747882528650,5.7286,174.52,174.5,1.43243647]
[1747882528847,0.04218486,174.53,174.49,0.03789996]
[1747882529049,0.04212141,174.53,174.5,1.43259719]
[1747882529247,0.04212141,174.53,174.49,0.03735229]
[1747882529445,0.04212141,174.53,174.5,1.43257748]
[1747882529646,0.04212141,174.53,174.51,1.4324622]
[1747882529846,0.04212141,174.53,174.49,0.03735229]
[1747882530054,0.04212141,174.53,174.5,1.43246209]
[1747882530250,0.04212141,174.53,174.49,6.67979555]
[1747882530551,0.04212141,174.53,174.51,5.7287]
[1747882531651,0.04212141,174.53,174.49,0.03735229]
[1747882531850,0.04212141,174.53,174.5,1.43246269]
[1747882532044,0.04212141,174.53,174.49,0.03735229]
[1747882532243,0.04212141,174.53,174.51,5.7284]
[1747882533752,0.04212141,174.53,174.52,5.7284]
[1747882536159,0.04212141,174.53,174.52,7.16072071]
[1747882537261,0.04212141,174.53,174.52,7.1606711]
[1747882537559,0.04212141,174.53,174.52,8.59294218]
[1747882538255,0.04212141,174.53,174.52,7.1606711]
[1747882539661,0.04212141,174.53,174.52,1.4322711]
[1747882540265,0.04212141,174.53,174.52,4.19389548]
[1747882540467,0.04212141,174.53,174.52,2.76162438]
[1747882540761,0.04212141,174.53,174.52,1.43241516]
[1747882540961,127.64,174.6,174.52,1.43241516]
[1747882541156,127.64,174.6,174.53,1.43241516]
[1747882541364,127.64,174.6,174.52,127.32]
[1747882541662,5.7261,174.59,174.53,1.43223032]
[1747882541862,127.64,174.6,174.54,1.43223032]
[1747882542167,0.04236731,174.59,174.55,7.19678571]
[1747882542357,0.04236731,174.59,174.55,1.46948571]
[1747882542662,0.04236731,174.59,174.55,7.19678571]
[1747882542856,0.04236731,174.59,174.55,1.46948571]
[1747882543054,0.04236731,174.59,174.55,0.03728664]
[1747882543466,5.76866731,174.59,174.55,0.03728664]
[1747882543762,0.04236731,174.59,174.55,0.03728664]
[1747882544160,5.76856731,174.59,174.55,0.03728664]
[1747882544659,5.7264,174.58,174.56,2.42914581]
[1747882545160,5.7264,174.58,174.55,0.03728664]
[1747882546965,5.7265,174.58,174.55,0.03728664]
[1747882547463,5.7265,174.58,174.56,1.43217058]
[1747882547658,5.7265,174.58,174.55,0.03728664]
[1747882547858,5.7265,174.58,174.57,1.43217221]
[1747882548864,5.7265,174.58,174.55,0.03728664]
[1747882549062,5.7267,174.57,174.55,0.03728664]
[1747882549262,0.04236731,174.59,174.55,0.03728664]
[1747882549765,5.727,174.56,174.55,0.03728664]
[1747882552065,5.7268,174.57,174.55,0.03728664]
[1747882552569,0.04236731,174.59,174.56,1.43234444]
[1747882553473,5.727,174.57,174.55,0.03728664]
[1747882554168,0.04236731,174.59,174.55,0.03728664]
[1747882554373,5.994,174.7,174.58,6.64131682]
[1747882554569,5.994,174.7,174.59,128.75225377]
[1747882554873,10.74227243,174.66,174.6,1.43175825]
[1747882555061,10.74227243,174.66,174.61,1.43175825]
[1747882555262,10.74227243,174.66,174.62,1.43175825]
[1747882555457,0.03641776,174.65,174.62,0.04269912]
[1747882556960,0.03641776,174.65,174.62,5.76759912]
[1747882557569,0.03641776,174.65,174.62,0.04269912]
[1747882559673,5.76061776,174.65,174.62,0.04269912]
[1747882559975,0.03641776,174.65,174.62,0.04269912]
[1747882560272,0.03641776,174.65,174.62,5.76759912]
[1747882560667,0.03641776,174.65,174.62,0.04269912]
[1747882560874,0.03641776,174.65,174.64,5.7244]
[1747882562674,0.03641776,174.65,174.63,5.7247]
[1747882562974,0.03641776,174.65,174.62,0.04269912]
[1747882563474,0.03641776,174.65,174.63,5.7245]
[1747882563675,0.03641776,174.65,174.62,0.04269912]
[1747882564579,0.03641776,174.65,174.62,5.76749912]
[1747882565177,0.03641776,174.65,174.62,0.04269912]
[1747882566977,5.7248,174.63,174.62,0.04269912]
[1747882567979,5.7263,174.59,174.57,126.94]
[1747882568375,5.7263,174.59,174.53,133.58131682]
[1747882568679,5.7258,174.6,174.54,1.43206911]
[1747882568876,126.94,174.66,174.55,1.43206911]
[1747882569079,126.94,174.66,174.53,133.58131682]
[1747882569275,0.04091792,174.61,174.58,0.03699208]
[1747882569574,5.726,174.6,174.58,0.03699208]
[1747882570776,5.76641792,174.61,174.58,0.03699208]
[1747882570980,0.04091792,174.61,174.58,0.03699208]
[1747882571474,5.7261,174.59,174.58,0.03699208]
[1747882575482,5.7261,174.59,174.58,1.46915703]
[1747882576288,5.7261,174.59,174.58,0.03699208]
[1747882582084,5.7261,174.59,174.58,1.46915765]
[1747882583076,5.7261,174.59,174.58,0.03699208]
[1747882588285,0.04091792,174.61,174.58,1.46895905]
[1747882588484,0.04091792,174.61,174.58,0.03699208]
[1747882590392,5.7257,174.6,174.58,0.03699208]
[1747882590692,0.04091792,174.61,174.58,0.03699208]
[1747882591387,0.04091792,174.61,174.58,5.76339208]
[1747882591593,0.04091792,174.61,174.58,0.03699208]
[1747882592394,5.76631792,174.61,174.58,0.03699208]
[1747882593095,5.7258,174.6,174.58,0.03699208]
[1747882593292,0.04091792,174.61,174.58,0.03699208]
[1747882593704,5.7261,174.59,174.58,0.03699208]
[1747882595294,5.72,174.59,174.4,126.6]
[1747882595497,6.64633244,174.58,174.42,1.432553]
[1747882595704,6.64633244,174.58,174.43,1.432553]
[1747882595894,6.64633244,174.55,174.44,1.432553]
[1747882596094,126.6,174.54,174.45,1.432553]
[1747882596302,0.04364784,174.51,174.48,7.593e-05]
[1747882596499,6.64633244,174.52,174.38,126.6]
[1747882596697,6.64633244,174.52,174.39,1.43340674]
[1747882596902,6.64633244,174.52,174.4,1.43343503]
[1747882597199,6.64633244,174.52,174.38,126.6]
[1747882597403,0.03623019,174.47,174.43,0.04386087]
[1747882597590,126.64,174.46,174.43,0.04386087]
[1747882598400,5.731,174.44,174.43,0.04386087]
[1747882602091,132.3706,174.46,174.43,0.04386087]
[1747882602291,0.03623019,174.47,174.43,0.04386087]
[1747882602796,5.76643019,174.47,174.43,0.04386087]
[1747882603604,5.7304,174.46,174.43,0.04386087]
[1747882604101,0.03623019,174.47,174.43,0.04386087]
[1747882604403,5.76623019,174.47,174.43,0.04386087]
[1747882605094,0.03623019,174.47,174.43,5.77506087]
[1747882605299,0.03623019,174.47,174.43,0.04386087]
[1747882605500,0.03623019,174.47,174.44,1.43327537]
[1747882605800,5.76633019,174.47,174.44,1.43327537]
[1747882606106,0.03623019,174.47,174.44,1.43327537]
[1747882606797,0.03623019,174.47,174.43,5.77506087]
[1747882607604,0.03623019,174.47,174.43,0.04386087]
[1747882608306,5.76633019,174.47,174.43,0.04386087]
[1747882608907,5.7304,174.46,174.43,0.04386087]
[1747882609409,0.03623019,174.47,174.43,0.04386087]
[1747882611008,5.7309,174.45,174.43,0.04386087]
[1747882611205,0.03623019,174.47,174.43,0.04386087]
[1747882611709,5.731,174.45,174.43,0.04386087]
[1747882612810,5.731,174.45,174.44,1.4333211]
[1747882613403,5.731,174.44,174.43,0.04386087]
[1747882616009,5.7306,174.45,174.43,0.04386087]
[1747882616614,5.731,174.44,174.43,0.04386087]
[1747882619019,5.731,174.44,174.43,1.43361617]
[1747882619219,5.731,174.44,174.43,1.617e-05]
[1747882619819,5.7326,174.4,174.35,6.64633244]
[1747882620219,0.03930255,174.39,174.36,0.04165781]
[1747882621119,0.03930255,174.39,174.37,6.64633244]
[1747882622122,5.77200255,174.39,174.37,6.64633244]
[1747882623919,5.77200255,174.39,174.36,0.04165781]
[1747882624627,0.03930255,174.39,174.36,5.77525781]
[1747882626823,126.7,174.45,174.38,6.64633244]
[1747882627323,5.7312,174.44,174.38,6.64633244]
[1747882627624,126.7,174.45,174.38,6.64633244]
[1747882627818,0.03772153,174.43,174.4,5.77366344]
[1747882628024,11.4552,174.55,174.4,5.77366344]
[1747882628025,126.46,174.51,174.41,6.64633244]
[1747882628622,5.7293,174.5,174.45,5.7306]
[1747882629017,0.04171596,174.49,174.46,0.03910595]
[1747882629726,5.77111596,174.49,174.46,0.03910595]
[1747882630230,0.04171596,174.49,174.46,0.03910595]
[1747882630429,0.04171596,174.49,174.46,5.76930595]
[1747882630725,126.44,174.55,174.46,6.68543839]
[1747882630919,132.1674,174.55,174.51,5.7286]
[1747882631728,132.20851606,174.55,174.51,5.76765509]
[1747882631930,0.04111606,174.55,174.51,0.03905509]
[1747882632421,0.04111606,174.55,174.52,5.7281]
[1747882632724,0.04111606,174.55,174.51,0.03905509]
[1747882634126,0.04111606,174.55,174.52,5.7283]
[1747882634934,0.04111606,174.55,174.51,5.76765509]
[1747882636732,0.04111606,174.55,174.52,5.7282]
[1747882637032,0.04111606,174.55,174.51,0.03905509]
[1747882637337,0.04111606,174.55,174.52,5.7281]
[1747882637537,0.04111606,174.55,174.51,0.03905509]
[1747882637835,0.04111606,174.55,174.52,6.64633244]
[1747882638541,126.4,174.63,174.52,6.64633244]
[1747882638840,126.4,174.63,174.52,8.56783244]
[1747882639026,5.7255,174.61,174.57,5.7266]
[1747882639536,5.76505866,174.61,174.57,5.76958395]
[1747882640337,5.76505866,174.61,174.57,0.04298395]
[1747882640533,0.03955866,174.61,174.57,0.04298395]
[1747882641638,5.7264,174.58,174.57,0.04298395]
[1747882648442,5.7264,174.58,174.57,8.395e-05]
[1747882648637,132.0864,174.58,174.57,8.395e-05]
[1747882657249,126.36,174.58,174.57,8.395e-05]
[1747882657549,0.03955866,174.61,174.57,8.395e-05]
[1747882658147,5.7264,174.58,174.57,8.395e-05]
[1747882658837,5.7261,174.59,174.57,8.395e-05]
[1747882659244,0.03955866,174.61,174.57,8.395e-05]
[1747882660043,5.7258,174.6,174.57,8.395e-05]
[1747882660345,0.03955866,174.61,174.57,8.395e-05]
[1747882661348,5.7258,174.6,174.57,8.395e-05]
[1747882661848,5.76495866,174.61,174.57,8.395e-05]
[1747882662046,5.76495866,174.61,174.57,5.72678395]
[1747882662349,0.03955866,174.61,174.57,5.72678395]
[1747882662847,0.03955866,174.61,174.58,5.7262]
[1747882663750,0.03955866,174.61,174.59,5.726]
[1747882664447,0.03955866,174.61,174.58,5.7263]
[1747882664950,0.03955866,174.61,174.57,8.395e-05]
[1747882666551,5.7264,174.58,174.57,8.395e-05]
[1747882671754,0.03955866,174.61,174.57,8.395e-05]
[1747882672451,5.76515866,174.61,174.57,8.395e-05]
[1747882673153,0.03955866,174.61,174.57,5.72668395]
[1747882674354,0.03955866,174.61,174.57,8.395e-05]
[1747882675450,5.7259,174.6,174.57,8.395e-05]
[1747882676057,5.7261,174.59,174.57,8.395e-05]
[1747882677055,5.7258,174.6,174.57,8.395e-05]
[1747882677456,0.03955866,174.61,174.57,8.395e-05]
[1747882678354,5.7264,174.58,174.57,8.395e-05]
[1747882678549,131.7664,174.58,174.57,8.395e-05]
[1747882679049,131.7664,174.58,174.47,1.43253284]
[1747882679358,6.64633244,174.57,174.48,1.43253284]
[1747882679660,6.64633244,174.54,174.43,4.1086]
[1747882679955,129.9844,174.53,174.44,1.43289434]
[1747882680160,0.03979051,174.5,174.47,0.03809743]
[1747882680358,0.03979051,174.5,174.48,1.43292022]
[1747882680559,0.03979051,174.5,174.47,0.03809743]
[1747882680761,0.03979051,174.5,174.48,1.43277824]
[1747882680962,0.03979051,174.5,174.49,1.43277778]
[1747882681860,5.7271,174.56,174.49,5.27247778]
[1747882682061,126.06,174.57,174.5,1.43277778]
[1747882682262,126.06,174.57,174.51,1.43277778]
[1747882682561,126.06,174.57,174.52,1.43277778]
[1747882682761,0.04027386,174.56,174.53,1.47240748]
[1747882682958,5.7277,174.55,174.53,0.03999084]
[1747882683158,0.04027386,174.56,174.53,0.03999084]
[1747882684063,5.76737386,174.56,174.53,0.03999084]
[1747882684261,0.04027386,174.56,174.53,0.03999084]
[1747882684660,0.04027386,174.56,174.54,5.7276]
[1747882684865,0.04027386,174.56,174.53,0.03999084]
[1747882686474,5.7276,174.55,174.53,0.03999084]
[1747882688965,5.7277,174.54,174.53,0.03999084]
[1747882689765,0.04027386,174.56,174.53,0.03999084]
[1747882690361,5.76757386,174.56,174.53,0.03999084]
[1747882690769,0.04027386,174.56,174.53,0.03999084]
[1747882692167,5.7277,174.54,174.53,0.03999084]
[1747882695673,5.7277,174.54,174.53,1.47248599]
[1747882695972,5.7277,174.54,174.53,0.03999084]
[1747882698076,5.76737386,174.56,174.53,1.47248599]
[1747882698371,0.04027386,174.56,174.53,1.47248599]
[1747882698574,5.7277,174.54,174.53,1.47248599]
[1747882699473,5.7277,174.54,174.53,0.03999084]
[1747882702077,5.7277,174.54,174.53,1.47248449]
[1747882702280,5.7274,174.55,174.53,1.47248449]
[1747882702777,5.7274,174.55,174.53,0.03999084]
[1747882702978,5.76737386,174.56,174.53,0.03999084]
[1747882703379,0.04027386,174.56,174.53,5.76779084]
[1747882703580,5.76737386,174.56,174.53,5.76779084]
[1747882703774,0.04027386,174.56,174.53,0.03999084]
[1747882704773,5.7276,174.55,174.53,0.03999084]
[1747882704981,0.04027386,174.56,174.53,0.03999084]
[1747882705380,5.7277,174.54,174.53,0.03999084]
[1747882706980,5.7277,174.54,174.53,9.084e-05]
[1747882716780,5.7319,174.42,174.34,4.0655]
[1747882717086,125.44,174.45,174.35,3.41537942]
[1747882717281,5.731,174.44,174.35,1.9822]
[1747882717480,6.64633244,174.5,174.37,6.64633244]
[1747882717680,125.46,174.47,174.37,6.64633244]
[1747882717874,0.03649879,174.44,174.4,5.7728829]
[1747882718979,0.03649879,174.44,174.41,5.7319]
[1747882720985,0.03649879,174.44,174.42,1.43338317]
[1747882721986,0.03649879,174.44,174.4,0.0408829]
[1747882722284,0.03649879,174.44,174.4,4.0567829]
[1747882722786,0.03649879,174.44,174.43,5.7313]
[1747882725690,0.03649879,174.44,174.42,5.7316]
[1747882726087,0.03649879,174.44,174.41,1.9728]
[1747882726390,0.03649879,174.44,174.42,5.7316]
[1747882729889,0.03649879,174.44,174.41,1.9728]
[1747882730292,0.03649879,174.44,174.43,5.7313]
[1747882733102,0.03649879,174.44,174.42,5.7315]
[1747882733298,0.03649879,174.44,174.41,1.9728]
[1747882734301,0.03649879,174.44,174.41,7.7045]
[1747882735301,0.03649879,174.44,174.42,5.7316]
[1747882735502,0.03649879,174.44,174.41,1.9728]
[1747882735900,0.03649879,174.44,174.43,5.7313]
[1747882737601,129.4968,174.55,174.43,131.22]
[1747882737800,5.7283,174.53,174.44,6.64633244]
[1747882738001,125.48,174.55,174.49,5.7293]
[1747882738297,5.7282,174.53,174.45,6.64633244]
[1747882738504,0.04241215,174.51,174.49,5.7293]
[1747882740003,0.04241215,174.51,174.48,5.7296]
[1747882740305,0.04241215,174.51,174.47,0.04068981]